bitfinex/quotes_BTCUSD_20251124
["timestamp","ask_amount","ask_price","bid_price","bid_amount"]
[1764012883684,0.82854243,88860.0,88859.0,0.00039212]
[1764012884190,0.82954243,88860.0,88859.0,0.00039212]
[1764012884906,0.82950243,88860.0,88859.0,0.00039212]
[1764012885111,0.60442929,88860.0,88859.0,0.00039212]
[1764012885332,0.57304193,88860.0,88859.0,0.00039212]
[1764012885612,0.0330743,88860.0,88859.0,0.19126212]
[1764012885769,0.0330743,88860.0,88859.0,0.21038833]
[1764012885990,0.0330743,88860.0,88859.0,0.19126212]
[1764012886183,0.0330743,88860.0,88859.0,0.4163378]
[1764012886557,0.0320743,88860.0,88859.0,0.09160212]
[1764012886766,0.0320743,88860.0,88859.0,0.19126212]
[1764012886967,0.0330743,88860.0,88859.0,0.19126212]
[1764012887296,0.0320743,88860.0,88859.0,0.19126212]
[1764012887512,0.0330743,88860.0,88859.0,0.4163378]
[1764012888318,0.0330743,88860.0,88859.0,0.00039212]
[1764012888319,0.0420743,88860.0,88859.0,0.00039212]
[1764012888637,0.14368501,88860.0,88859.0,0.00039212]
[1764012890380,0.00607552,88864.0,88859.0,0.00039212]
[1764012890535,0.03383879,88868.0,88860.0,0.09965]
[1764012890734,0.03383879,88868.0,88863.0,0.22506483]
[1764012891162,0.03383879,88868.0,88864.0,0.11317392]
[1764012891363,0.03383879,88868.0,88865.0,0.22506048]
[1764012891523,0.001,88868.0,88867.0,0.10939]
[1764012891720,0.001,88868.0,88867.0,0.17139928]
[1764012891936,0.001,88868.0,88867.0,0.27104928]
[1764012892334,0.001,88868.0,88867.0,0.49610469]
[1764012892870,0.00024413,88874.0,88867.0,0.27104928]
[1764012893204,0.00024413,88874.0,88873.0,0.04893]
[1764012893396,0.00024413,88874.0,88873.0,0.33443022]
[1764012893614,0.00024413,88874.0,88873.0,0.10939]
[1764012893944,0.00024413,88874.0,88873.0,0.43408022]
[1764012894114,0.00124413,88874.0,88873.0,0.43408022]
[1764012894460,0.00024413,88874.0,88873.0,0.43408022]
[1764012894882,0.00124413,88874.0,88873.0,0.43408022]
[1764012895301,0.00124413,88874.0,88873.0,0.52759068]
[1764012896081,0.00024413,88874.0,88873.0,0.52759068]
[1764012896707,0.00024413,88874.0,88873.0,0.6407646]
[1764012896886,0.00024413,88874.0,88873.0,0.6417646]
[1764012900229,0.00024413,88874.0,88873.0,0.70428759]
[1764012901383,0.00024413,88874.0,88873.0,0.54825414]
[1764012901585,0.00024413,88874.0,88873.0,0.38814414]
[1764012901788,0.00024413,88874.0,88873.0,0.11417392]
[1764012901987,0.00034413,88874.0,88873.0,0.11417392]
[1764012902118,0.00024413,88874.0,88873.0,0.49932414]
[1764012902319,0.00024413,88874.0,88873.0,0.59916015]
[1764012902521,0.00024413,88874.0,88873.0,0.49832414]
[1764012903152,0.00024413,88874.0,88873.0,0.39867414]
[1764012903598,0.00024413,88874.0,88873.0,0.49832414]
[1764012903746,0.00024413,88874.0,88873.0,0.39867414]
[1764012904149,0.00024413,88874.0,88873.0,0.49832414]
[1764012905003,0.00024413,88874.0,88873.0,0.27328392]
[1764012905218,0.00024413,88874.0,88873.0,0.39867414]
[1764012905503,0.00024413,88874.0,88873.0,0.17363392]
[1764012905706,0.00024413,88874.0,88873.0,0.11317392]
[1764012906158,0.00024413,88874.0,88860.0,0.02999997]
[1764012906159,0.04241413,88874.0,88860.0,0.01999998]
[1764012906362,0.0479,88861.0,88859.0,0.00039212]
[1764012906564,9e-05,88860.0,88859.0,0.00039212]
[1764012906771,0.00958,88860.0,88859.0,0.00039212]
[1764012906946,0.01958,88860.0,88859.0,0.00039212]
[1764012907325,0.01009,88860.0,88859.0,0.00039212]
[1764012907846,0.0479,88861.0,88859.0,0.00039212]
[1764012908005,0.0479,88861.0,88859.0,0.22546766]
[1764012908206,0.0479,88861.0,88859.0,0.00039212]
[1764012908432,0.03403302,88860.0,88859.0,0.00039212]
[1764012908845,0.03403302,88860.0,88859.0,0.2254678]
[1764012909022,0.03384302,88860.0,88859.0,0.00039212]
[1764012910298,0.05486148,88860.0,88859.0,0.00039212]
[1764012910689,0.02101846,88860.0,88859.0,0.22806779]
[1764012910899,0.323,88869.0,88859.0,0.16050212]
[1764012911102,0.04190413,88874.0,88859.0,0.16050212]
[1764012911103,0.03384085,88865.0,88864.0,0.22506301]
[1764012911315,0.03384085,88865.0,88863.0,0.04893]
[1764012911316,0.00024413,88874.0,88873.0,0.04893]
[1764012911512,0.03408127,88874.0,88873.0,0.04893]
[1764012911677,0.06569498,88874.0,88860.0,0.01999998]
[1764012911878,0.11261071,88868.0,88862.0,0.00716]
[1764012912125,0.02102371,88867.0,88860.0,0.01999998]
[1764012912328,0.02102371,88867.0,88852.0,0.04893]
[1764012912329,0.00011,88861.0,88852.0,0.22509088]
[1764012912530,0.03191371,88860.0,88851.0,0.11317392]
[1764012913267,0.57998685,88860.0,88851.0,0.11317392]
[1764012913558,0.35491371,88860.0,88851.0,0.11317392]
[1764012913762,0.35491371,88860.0,88853.0,0.22509057]
[1764012914164,0.34413371,88860.0,88855.0,0.2250848]
[1764012914388,0.34413371,88860.0,88854.0,0.2250881]
[1764012914551,0.34402371,88860.0,88856.0,0.22508316]
[1764012914755,0.02102371,88860.0,88855.0,0.2250848]
[1764012914991,0.02102371,88865.0,88856.0,0.2250825]
[1764012915193,0.01189,88860.0,88851.0,0.11317392]
[1764012915351,0.03291371,88860.0,88851.0,0.33826733]
[1764012915691,0.03291371,88860.0,88852.0,0.22509325]
[1764012915838,0.03191371,88860.0,88852.0,0.22509325]
[1764012916040,0.03191371,88860.0,88851.0,0.33826733]
[1764012916280,0.03191371,88860.0,88851.0,0.11317392]
[1764012916461,0.06575792,88860.0,88851.0,0.33826973]
[1764012916654,0.06575792,88860.0,88853.0,0.22509043]
[1764012917095,0.06575792,88860.0,88859.0,0.11356604]
[1764012917324,0.05486792,88860.0,88859.0,0.11356604]
[1764012917605,0.02102371,88860.0,88859.0,0.44673172]
[1764012917824,0.03384276,88862.0,88860.0,0.22507094]
[1764012917968,0.02104862,88861.0,88859.0,0.38484155]
[1764012918177,0.03384276,88862.0,88861.0,0.22507061]
[1764012918379,0.05488973,88862.0,88860.0,0.22507314]
[1764012918603,0.02104697,88861.0,88860.0,0.22507314]
[1764012918802,0.02104697,88861.0,88859.0,0.15976604]
[1764012918803,0.02104697,88861.0,88859.0,0.38484157]
[1764012919002,0.03384276,88862.0,88859.0,0.38484157]
[1764012919003,0.02104697,88860.0,88859.0,0.15976604]
[1764012919446,0.02104697,88860.0,88859.0,0.11356604]
[1764012919447,0.02115697,88860.0,88859.0,0.11356604]
[1764012921205,0.02215697,88860.0,88859.0,0.11356604]
[1764012922615,0.35593697,88860.0,88859.0,0.11356604]
[1764012922818,0.38978099,88860.0,88859.0,0.11356604]
[1764012923223,0.61485413,88860.0,88859.0,0.11356604]
[1764012924268,0.06678099,88860.0,88859.0,0.00039212]
[1764012924439,0.33505615,88860.0,88859.0,0.00039212]
[1764012924659,0.30237643,88860.0,88859.0,0.00039212]
[1764012924781,0.33505615,88860.0,88859.0,0.00039212]
[1764012925219,0.33405615,88860.0,88859.0,0.00039212]
[1764012925619,0.33505615,88860.0,88859.0,0.00039212]
[1764012925820,0.30237643,88860.0,88859.0,0.00039212]
[1764012926230,0.30337643,88860.0,88859.0,0.00039212]
[1764012928036,0.33605615,88860.0,88859.0,0.00039212]
[1764012928236,0.37186501,88860.0,88859.0,0.00039212]
[1764012928465,0.36101273,88860.0,88859.0,0.00039212]
[1764012928618,0.32762037,88860.0,88859.0,0.00039212]
[1764012928827,0.32662037,88860.0,88859.0,0.00039212]
[1764012929078,0.35830009,88860.0,88859.0,0.00039212]
[1764012929279,0.35930009,88860.0,88859.0,0.00039212]
[1764012929723,0.32562037,88860.0,88859.0,0.00039212]
[1764012929925,0.32662037,88860.0,88859.0,0.00039212]
[1764012930328,0.06752329,88860.0,88859.0,0.00039212]
[1764012930535,0.06416099,88860.0,88859.0,0.00039212]
[1764012930973,0.05600099,88860.0,88859.0,0.00039212]
[1764012931199,0.05689099,88860.0,88859.0,0.00039212]
[1764012931404,0.60496413,88860.0,88859.0,0.00039212]
[1764012931609,0.61396413,88860.0,88859.0,0.00039212]
[1764012931960,0.61307413,88860.0,88859.0,0.00039212]
[1764012932776,0.62385413,88860.0,88859.0,0.00039212]
[1764012932975,0.61307413,88860.0,88859.0,0.00039212]
[1764012933395,0.38800099,88860.0,88859.0,0.00039212]
[1764012933598,0.06489099,88860.0,88859.0,0.00039212]
[1764012934115,0.62385413,88860.0,88859.0,0.00039212]
[1764012935051,0.40853885,88860.0,88859.0,0.00039212]
[1764012935227,0.07489099,88860.0,88859.0,0.26701604]
[1764012935440,0.04104697,88860.0,88859.0,0.31622626]
[1764012935863,0.04104697,88860.0,88859.0,0.26701604]
[1764012936009,0.04104697,88860.0,88859.0,0.31321604]
[1764012937038,0.04104697,88860.0,88859.0,0.11356604]
[1764012937642,0.04104697,88860.0,88859.0,0.31321604]
[1764012939804,0.02,88860.0,88859.0,0.31321604]
[1764012939952,0.04108497,88860.0,88859.0,0.31321604]
[1764012940582,0.04108497,88860.0,88859.0,0.41615405]
[1764012941113,0.04108497,88860.0,88859.0,0.31321604]
[1764012941896,0.04108497,88860.0,88859.0,0.22165604]
[1764012942288,0.04108497,88860.0,88859.0,0.31321604]
[1764012943450,0.04108497,88860.0,88859.0,0.53829172]
[1764012943590,0.04108497,88860.0,88859.0,0.31321604]
[1764012943924,0.04108497,88860.0,88859.0,0.53829172]
[1764012944728,0.04108497,88860.0,88859.0,0.65351303]
[1764012944926,0.04108497,88860.0,88859.0,0.22165604]
[1764012945371,0.04108497,88860.0,88859.0,0.11356604]
[1764012946028,0.26615811,88860.0,88859.0,0.11356604]
[1764012949239,0.64577811,88860.0,88859.0,0.00039212]
[1764012949628,0.65631774,88860.0,88859.0,0.00039212]
[1764012949836,0.64577811,88860.0,88859.0,0.00039212]
[1764012950283,0.59627811,88860.0,88859.0,0.00039212]
[1764012951742,0.59725811,88860.0,88859.0,0.00039212]
[1764012951939,0.64578811,88860.0,88859.0,0.00039212]
[1764012952765,0.28170314,88860.0,88859.0,0.00039212]
[1764012952972,0.23317314,88860.0,88859.0,0.00039212]
[1764012953173,0.28170314,88860.0,88859.0,0.00039212]
[1764012953389,0.29224221,88860.0,88859.0,0.00039212]
[1764012954219,0.38547704,88860.0,88859.0,0.00039212]
[1764012954410,0.40558544,88860.0,88859.0,0.00039212]
[1764012954623,0.40458544,88860.0,88859.0,0.00039212]
[1764012954981,0.40558544,88860.0,88859.0,0.00039212]
[1764012955589,0.40658544,88860.0,88859.0,0.00039212]
[1764012955944,0.40558544,88860.0,88859.0,0.00039212]
[1764012956361,0.40658544,88860.0,88859.0,0.00039212]
[1764012957044,0.7634374,88860.0,88859.0,0.00039212]
[1764012960361,0.62684531,88860.0,88859.0,0.00039212]
[1764012960867,0.63277791,88860.0,88859.0,0.00039212]
[1764012961076,0.68992791,88860.0,88859.0,0.00039212]
[1764012961289,0.7584206,88860.0,88859.0,0.00039212]
[1764012961412,0.68992791,88860.0,88859.0,0.00039212]
[1764012961819,0.63993791,88860.0,88859.0,0.00039212]
[1764012962234,0.64042791,88860.0,88859.0,0.00039212]
[1764012964414,0.63993791,88860.0,88859.0,0.00039212]
[1764012968010,0.63980261,88860.0,88859.0,0.00039212]
[1764012968211,0.59879065,88860.0,88859.0,0.00039212]
[1764012968443,0.57450951,88860.0,88859.0,0.00039212]
[1764012969072,0.57350951,88860.0,88859.0,0.00039212]
[1764012969494,0.57250951,88860.0,88859.0,0.00039212]
[1764012969715,0.57450951,88860.0,88859.0,0.00039212]
[1764012970127,0.57450951,88860.0,88859.0,0.06568212]
[1764012970333,0.57450951,88860.0,88859.0,0.15748212]
[1764012970547,0.57450951,88860.0,88859.0,0.27065604]
[1764012970755,0.62400951,88860.0,88859.0,0.11356604]
[1764012970965,0.64827226,88860.0,88859.0,0.11356604]
[1764012971173,0.59926226,88860.0,88859.0,0.11356604]
[1764012971503,0.57450951,88860.0,88859.0,0.11356604]
[1764012971715,0.59877701,88860.0,88859.0,0.11356604]
[1764012973860,0.59926701,88860.0,88859.0,0.11356604]
[1764012974265,0.64827701,88860.0,88859.0,0.07973745]
[1764012974471,0.54814409,88832.0,88826.0,0.09817]
[1764012974677,0.56922893,88832.0,88826.0,0.09817]
[1764012975582,0.60190865,88832.0,88826.0,0.09817]
[1764012975787,0.54816183,88825.0,88824.0,0.04743]
[1764012975989,0.323,88815.0,88814.0,0.04743]
[1764012976198,0.60195174,88815.0,88814.0,0.04743]
[1764012976400,0.56927202,88815.0,88814.0,0.216356]
[1764012976801,0.56927202,88815.0,88814.0,0.20687]
[1764012978350,0.56927202,88815.0,88814.0,0.1087]
[1764012978556,0.02108484,88815.0,88814.0,0.20687]
[1764012978973,0.24627202,88815.0,88814.0,0.20687]
[1764012979156,0.56927202,88815.0,88814.0,0.20687]
[1764012979393,0.56927202,88815.0,88814.0,0.1087]
[1764012979600,0.56927202,88815.0,88814.0,0.04743]
[1764012982192,0.54819225,88813.0,88812.0,0.04743]
[1764012982443,0.56927709,88813.0,88812.0,0.0485601]
[1764012983824,0.56927709,88813.0,88812.0,0.1098301]
[1764012984042,0.56927709,88813.0,88812.0,0.2080001]
[1764012984587,0.24627709,88813.0,88812.0,0.2080001]
[1764012984810,0.56927709,88813.0,88812.0,0.2080001]
[1764012985216,0.34408484,88813.0,88812.0,0.2080001]
[1764012985740,0.56927709,88813.0,88812.0,0.2080001]
[1764012985950,0.34408484,88813.0,88812.0,0.2080001]
[1764012986161,0.34408484,88813.0,88812.0,0.23677386]
[1764012986363,0.34408484,88813.0,88812.0,0.2080001]
[1764012987364,0.34408484,88813.0,88812.0,0.2151601]
[1764012987770,0.34408484,88813.0,88812.0,0.2161601]
[1764012990119,0.23643073,88821.0,88812.0,0.2161601]
[1764012990330,0.22515969,88826.0,88813.0,0.09817]
[1764012990532,0.01125695,88834.0,88820.0,0.06762565]
[1764012990829,0.01125669,88836.0,88825.0,0.06127]
[1764012991031,0.11261071,88838.0,88825.0,0.06127]
[1764012991032,0.12386715,88838.0,88835.0,0.06127]
[1764012991233,0.22513472,88836.0,88835.0,0.06127]
[1764012992154,0.54913472,88836.0,88835.0,0.06127]
[1764012992355,0.54913472,88836.0,88835.0,0.15944]
[1764012992528,0.54913472,88836.0,88835.0,0.181127]
[1764012992849,0.54913472,88836.0,88835.0,0.021687]
[1764012992850,0.55013472,88836.0,88835.0,0.021687]
[1764012993192,0.54813472,88836.0,88835.0,0.021687]
[1764012993608,0.324,88836.0,88835.0,0.15944]
[1764012993962,0.324,88836.0,88835.0,0.06127]
[1764012994280,0.323,88836.0,88835.0,0.06127]
[1764012994609,0.323,88836.0,88835.0,0.06137603]
[1764012994856,0.323,88836.0,88835.0,0.15954603]
[1764012996143,0.323,88836.0,88835.0,0.23928348]
[1764012996582,0.323,88836.0,88835.0,0.23971098]
[1764012999958,0.54813395,88836.0,88835.0,0.23971098]
[1764013001309,0.323,88836.0,88835.0,0.46484746]
[1764013001446,0.03385051,88850.0,88840.0,0.02999997]
[1764013001650,0.03385051,88850.0,88849.0,0.10336]
[1764013001852,0.00716,88875.0,88858.0,0.22507667]
[1764013002166,0.68667972,88870.0,88865.0,0.1087]
[1764013002369,0.02103899,88867.0,88865.0,0.221456]
[1764013002571,0.02203121,88866.0,88865.0,0.221456]
[1764013003685,0.34503121,88866.0,88865.0,0.221456]
[1764013003886,0.24708916,88866.0,88865.0,0.221456]
[1764013004038,0.24708916,88866.0,88865.0,0.20687]
[1764013004242,0.57008916,88866.0,88865.0,0.20687]
[1764013004639,0.57008916,88866.0,88865.0,0.20787]
[1764013005079,0.57008916,88866.0,88865.0,0.20343]
[1764013005286,0.57008916,88866.0,88865.0,0.20443]
[1764013006161,0.01125327,88863.0,88860.0,0.02999997]
[1764013006362,0.33425581,88843.0,88840.0,0.09595]
[1764013006531,0.22512128,88841.0,88840.0,0.09605603]
[1764013006690,0.22512128,88841.0,88840.0,0.11461363]
[1764013006894,0.22512128,88841.0,88840.0,0.17595363]
[1764013007093,0.22512128,88841.0,88840.0,0.15739603]
[1764013007438,0.54812128,88841.0,88840.0,0.15767084]
[1764013008443,0.54812128,88841.0,88840.0,0.15867084]
[1764013009741,0.54812128,88841.0,88840.0,0.06272084]
[1764013009946,0.56912525,88841.0,88840.0,0.00138084]
[1764013010549,0.56912525,88841.0,88840.0,0.06296084]
[1764013012193,0.56912525,88841.0,88840.0,0.14269829]
[1764013014515,0.56912525,88841.0,88840.0,0.08111829]
[1764013014516,0.24661525,88841.0,88840.0,0.08111829]
[1764013014716,0.29562525,88841.0,88840.0,0.08111829]
[1764013014873,0.24612525,88841.0,88840.0,0.14269829]
[1764013015084,0.24612525,88841.0,88840.0,0.23536829]
[1764013015631,0.24612525,88841.0,88840.0,0.08011829]
[1764013015830,0.24612525,88841.0,88840.0,0.14169829]
[1764013016051,0.24612525,88841.0,88840.0,0.08011829]
[1764013016532,0.56912525,88841.0,88840.0,0.24238012]
[1764013016911,0.56912525,88841.0,88840.0,0.14169829]
[1764013018726,0.56912525,88841.0,88840.0,0.06196084]
[1764013019696,0.34400397,88841.0,88840.0,0.06196084]
[1764013019940,0.34400397,88841.0,88840.0,0.24148829]
[1764013019941,0.02100397,88841.0,88840.0,0.24148829]
[1764013020201,0.02100397,88841.0,88840.0,0.26563712]
[1764013020617,0.23636531,88846.0,88840.0,0.26563712]
[1764013020618,0.01125353,88861.0,88840.0,0.49076093]
[1764013020785,0.22508328,88856.0,88854.0,0.01668]
[1764013020948,0.56914325,88855.0,88854.0,0.01668]
[1764013021501,0.24614325,88855.0,88854.0,0.07826]
[1764013021705,0.24614325,88855.0,88854.0,0.182468]
[1764013022122,0.24614325,88855.0,88854.0,0.17093]
[1764013022278,0.24614325,88855.0,88854.0,0.07826]
[1764013022685,0.24614325,88855.0,88854.0,0.01668]
[1764013022920,0.24614325,88855.0,88854.0,0.07826]
[1764013023130,0.24614325,88855.0,88854.0,0.17093]
[1764013023327,0.24614325,88855.0,88854.0,0.191735]
[1764013023532,0.02105744,88855.0,88854.0,0.191735]
[1764013023960,0.56914325,88855.0,88854.0,0.17093]
[1764013024165,0.56914325,88855.0,88854.0,0.07826]
[1764013024166,0.60423947,88855.0,88854.0,0.07826]
[1764013024344,0.56914325,88855.0,88854.0,0.07826]
[1764013024719,0.56914325,88855.0,88854.0,0.17093]
[1764013027124,0.56914325,88855.0,88854.0,0.26448475]
[1764013027857,0.24614325,88855.0,88854.0,0.26448475]
[1764013028059,0.24614325,88855.0,88854.0,0.1847473]
[1764013028289,0.02105744,88855.0,88854.0,0.1847473]
[1764013028483,0.02105744,88855.0,88854.0,0.26448475]
[1764013029835,0.02105744,88855.0,88854.0,0.25066745]
[1764013030048,0.34405744,88855.0,88854.0,0.25778745]
[1764013031069,0.34406503,88855.0,88854.0,0.25778745]
[1764013032869,0.02106503,88855.0,88854.0,0.25778745]
[1764013033072,0.24615084,88855.0,88854.0,0.25778745]
[1764013033879,0.02106503,88855.0,88854.0,0.28656619]
[1764013034267,0.02106503,88855.0,88854.0,0.25778745]
[1764013035280,0.56915084,88855.0,88854.0,0.25778745]
[1764013038999,0.68667972,88864.0,88854.0,0.25778745]
[1764013039171,0.22507061,88861.0,88860.0,0.00999999]
[1764013039534,0.22507061,88861.0,88860.0,0.21139999]
[1764013043937,0.22508328,88856.0,88855.0,0.32623745]
[1764013044313,0.22508328,88856.0,88855.0,0.38819745]
[1764013044721,0.22508834,88854.0,88853.0,0.07973745]
[1764013045667,0.27459834,88854.0,88853.0,0.07973745]
[1764013045810,0.32023528,88854.0,88853.0,0.07973745]
[1764013046453,0.22511875,88842.0,88841.0,0.00024427]
[1764013046654,0.22511875,88842.0,88841.0,0.07998172]
[1764013046655,0.33772946,88842.0,88841.0,0.07998172]
[1764013047075,0.33772946,88842.0,88841.0,0.23348172]
[1764013047215,0.37282568,88842.0,88841.0,0.06220427]
[1764013047426,0.78535869,88842.0,88841.0,0.00024427]
[1764013047785,0.72838356,88842.0,88841.0,0.00024427]
[1764013049147,0.76223858,88842.0,88841.0,0.00024427]
[1764013049351,0.76174858,88842.0,88841.0,0.00024427]
[1764013050191,0.76223858,88842.0,88841.0,0.00024427]
[1764013050369,0.76174858,88842.0,88841.0,0.00024427]
[1764013050796,0.78282027,88842.0,88841.0,0.00024427]
[1764013052038,0.68180115,88842.0,88841.0,0.00024427]
[1764013052240,0.68180115,88842.0,88841.0,0.18783427]
[1764013052241,0.24619044,88842.0,88841.0,0.18783427]
[1764013052448,0.24619044,88842.0,88841.0,0.2066283]
[1764013053420,0.24619044,88842.0,88841.0,0.18783427]
[1764013053631,0.24619044,88842.0,88841.0,0.18883427]
[1764013054044,0.34407169,88842.0,88841.0,0.18883427]
[1764013054217,0.02107169,88842.0,88841.0,0.18883427]
[1764013054416,0.01125568,88844.0,88841.0,0.18883427]
[1764013054417,0.22511698,88843.0,88841.0,0.18883427]
[1764013054625,2.323,88842.0,88841.0,0.03533427]
[1764013055027,2.323,88842.0,88841.0,0.09729427]
[1764013055280,2.323,88842.0,88841.0,0.03533427]
[1764013055524,2.323,88842.0,88841.0,0.00124427]
[1764013055525,2.32349,88842.0,88841.0,0.00124427]
[1764013055655,2.34454742,88842.0,88841.0,0.00124427]
[1764013056560,2.46107665,88842.0,88841.0,0.00024427]
[1764013056794,2.42598043,88842.0,88841.0,0.00024427]
[1764013057213,2.39355742,88842.0,88841.0,0.00024427]
[1764013057414,2.47160468,88842.0,88841.0,0.00024427]
[1764013058022,2.69672343,88842.0,88841.0,0.00024427]
[1764013058625,2.75924642,88842.0,88841.0,0.00024427]
[1764013058836,2.78349885,88842.0,88841.0,0.00024427]
[1764013059347,2.83567962,88842.0,88841.0,0.00024427]
[1764013060267,2.83667962,88842.0,88841.0,0.00024427]
[1764013061823,0.54812128,88841.0,88840.0,0.00010603]
[1764013062062,2.65345916,88841.0,88840.0,0.00010603]
[1764013062263,2.68588217,88841.0,88840.0,0.00010603]
[1764013062738,2.66482475,88841.0,88840.0,0.00010603]
[1764013062937,2.66155567,88841.0,88840.0,0.00010603]
[1764013063337,2.66255567,88841.0,88840.0,0.00010603]
[1764013063539,2.68929573,88841.0,88840.0,0.00010603]
[1764013063743,2.6231533,88841.0,88840.0,0.00010603]
[1764013063978,2.58929324,88841.0,88840.0,0.00010603]
[1764013064183,2.63830324,88841.0,88840.0,0.00010603]
[1764013065083,2.58929324,88841.0,88840.0,0.00010603]
[1764013066477,2.58880324,88841.0,88840.0,0.00010603]
[1764013066733,2.57115521,88841.0,88840.0,0.06462603]
[1764013066930,2.24815521,88841.0,88840.0,0.06462603]
[1764013067150,2.57115521,88841.0,88840.0,0.00010603]
[1764013068110,2.62065521,88841.0,88840.0,0.00010603]
[1764013068457,2.57164521,88841.0,88840.0,0.00010603]
[1764013068817,2.57115521,88841.0,88840.0,0.00010603]
[1764013069182,2.62065521,88841.0,88840.0,0.00010603]
[1764013069778,2.62777521,88841.0,88840.0,0.00010603]
[1764013070193,2.57827521,88841.0,88840.0,0.00010603]
[1764013070459,2.62778521,88841.0,88840.0,0.00010603]
[1764013071398,2.63831164,88841.0,88840.0,0.00010603]
[1764013071804,2.63831164,88841.0,88840.0,1.59e-05]
[1764013071998,0.54815676,88827.0,88826.0,0.04442631]
[1764013072337,0.50712345,88827.0,88826.0,0.10658631]
[1764013072638,0.50712345,88827.0,88826.0,0.20373631]
[1764013073792,0.50712345,88827.0,88826.0,0.22613437]
[1764013073994,0.50712345,88827.0,88826.0,0.20373631]
[1764013074477,0.39451274,88827.0,88826.0,0.28347376]
[1764013077918,0.39451274,88827.0,88826.0,0.07973745]
[1764013078116,2.41290605,88827.0,88826.0,0.07973745]
[1764013078317,2.46167605,88827.0,88826.0,0.07973745]
[1764013078475,2.5481593,88826.0,88825.0,0.00024433]
[1764013078676,2.65353476,88826.0,88825.0,0.00024433]
[1764013079267,2.68595777,88826.0,88825.0,0.00024433]
[1764013080780,2.63693777,88826.0,88825.0,0.00024433]
[1764013080985,2.57973654,88826.0,88825.0,0.00024433]
[1764013081394,2.62972654,88826.0,88825.0,0.00024433]
[1764013081604,2.66214955,88826.0,88825.0,0.00024433]
[1764013081986,2.57973654,88826.0,88825.0,0.00024433]
[1764013082429,2.60401473,88826.0,88825.0,0.00024433]
[1764013083192,2.60400768,88826.0,88825.0,0.00024433]
[1764013083774,2.57972949,88826.0,88825.0,0.15955433]
[1764013084839,0.24619323,88826.0,88825.0,0.15955433]
[1764013085687,0.02103393,88826.0,88825.0,0.15955433]
[1764013085926,0.34403393,88826.0,88825.0,0.15955433]
[1764013086167,0.56919323,88826.0,88825.0,0.15955433]
[1764013086359,0.02103393,88826.0,88825.0,0.15955433]
[1764013086834,0.02103393,88827.0,88825.0,0.15955433]
[1764013086978,0.02103393,88827.0,88826.0,0.09715]
[1764013087186,0.23640152,88832.0,88826.0,0.09715]
[1764013087187,0.00099245,88850.0,88839.0,0.2251263]
[1764013087388,0.00099245,88850.0,88838.0,0.2251259]
[1764013087389,0.02108246,88840.0,88838.0,0.2251259]
[1764013087595,0.23635881,88848.0,88840.0,0.06216]
[1764013087776,0.0255834,88841.0,88840.0,0.06216]
[1764013087973,0.0255834,88841.0,88840.0,0.23715338]
[1764013088267,0.00450069,88841.0,88840.0,0.23715338]
[1764013089110,0.00450069,88841.0,88840.0,0.15931]
[1764013089521,0.00450069,88841.0,88840.0,0.16643]
[1764013090496,0.00450069,88841.0,88840.0,0.16743]
[1764013090695,0.00450069,88841.0,88840.0,0.16643]
[1764013090932,0.01125061,88884.0,88870.0,0.02999997]
[1764013091217,0.22504443,88872.0,88871.0,0.00716]
[1764013091358,0.22504443,88872.0,88871.0,0.16647]
[1764013091730,0.3342515,88877.0,88871.0,0.18761]
[1764013091933,0.323,88872.0,88871.0,0.0283]
[1764013092071,0.323,88872.0,88871.0,0.00716]
[1764013092268,0.323,88872.0,88871.0,0.06216]
[1764013092506,0.323,88872.0,88871.0,0.15931]
[1764013093458,0.323,88872.0,88871.0,0.06216]
[1764013093721,0.22505035,88869.0,88868.0,0.03493]
[1764013094622,0.22505035,88869.0,88868.0,0.0992]
[1764013095915,0.22505035,88869.0,88868.0,0.210771]
[1764013096123,0.22505035,88869.0,88868.0,0.27015745]
[1764013097135,0.22505035,88869.0,88868.0,0.19042]
[1764013097350,0.323,88870.0,88868.0,0.19042]
[1764013097597,0.323,88870.0,88869.0,0.15549]
[1764013097931,0.323,88870.0,88869.0,0.19775371]
[1764013099427,0.00011759,88884.0,88877.0,0.22502923]
[1764013099620,0.00011759,88884.0,88883.0,0.11147]
[1764013100169,0.00011759,88884.0,88883.0,0.20269]
[1764013100170,0.32311759,88884.0,88883.0,0.20269]
[1764013100393,0.32311759,88884.0,88883.0,0.22480014]
[1764013100830,0.32311759,88884.0,88883.0,0.20269]
[1764013101035,0.54812996,88884.0,88883.0,0.20269]
[1764013103383,0.32311759,88884.0,88883.0,0.20269]
[1764013103804,0.2362505,88889.0,88883.0,0.20269]
[1764013104010,0.22500404,88888.0,88884.0,0.09122]
[1764013104183,0.22500404,88888.0,88885.0,0.08672356]
[1764013104384,0.22500404,88888.0,88887.0,0.06427]
[1764013104591,0.22500404,88888.0,88887.0,0.07139]
[1764013104799,0.22616358,88888.0,88887.0,0.16261]
[1764013105373,0.00115954,88888.0,88887.0,0.16261]
[1764013105580,0.00115954,88888.0,88887.0,0.24251609]
[1764013105795,0.00115954,88888.0,88887.0,0.46752087]
[1764013106202,0.00115954,88888.0,88887.0,0.24251609]
[1764013106615,0.00115954,88888.0,88887.0,0.61362087]
[1764013106818,0.00039211,88889.0,88887.0,0.61362087]
[1764013106819,1.65e-06,88889.0,88887.0,0.61362087]
[1764013107023,0.01124745,88909.0,88897.0,0.01124897]
[1764013107261,0.22495586,88907.0,88899.0,0.3303644]
[1764013107464,0.23620505,88906.0,88899.0,0.4215844]
[1764013107669,0.01124834,88902.0,88899.0,0.19661]
[1764013107876,0.22517187,88900.0,88899.0,0.19661]
[1764013108058,0.0002,88900.0,88899.0,0.23271793]
[1764013108193,0.00056604,88900.0,88899.0,0.23271793]
[1764013109466,0.00056604,88900.0,88899.0,0.23371793]
[1764013111696,0.22496757,88902.0,88901.0,0.06427]
[1764013111894,0.22496757,88902.0,88901.0,0.15549]
[1764013112229,0.23621591,88902.0,88901.0,0.19418379]
[1764013112999,0.23621591,88902.0,88901.0,0.34128379]
[1764013114125,0.22495502,88907.0,88901.0,0.34128379]
[1764013114126,0.0002,88930.0,88909.0,0.06427]
[1764013114328,0.0002,88930.0,88902.0,0.03895238]
[1764013114329,0.00031756,88930.0,88928.0,0.22490104]
[1764013114503,1.00721031,88960.0,88940.0,0.02999997]
[1764013114504,0.00450069,88952.0,88940.0,0.02999997]
[1764013114732,0.22484321,88951.0,88949.0,0.10155]
[1764013114932,0.3232,88950.0,88949.0,0.111705]
[1764013115139,0.3232,88950.0,88949.0,0.202925]
[1764013115340,0.0002,88950.0,88949.0,0.202925]
[1764013115543,0.0002,88950.0,88949.0,0.03728]
[1764013115745,0.0012,88950.0,88949.0,0.10155]
[1764013115983,0.0002,88950.0,88949.0,0.10155]
[1764013116169,0.0002,88950.0,88949.0,0.03728]
[1764013116388,0.0002,88950.0,88943.0,0.00716]
[1764013116389,0.22485805,88945.0,88943.0,0.00716]